Cogmind - Beta 15 @@@ ROGUE MODE // 2025.08.17 @ 18:24:34 Player: Deou Result: Destroyed by L-31 Rogue with Katana Performance ------------- Evolutions (1) 500 Regions Visited (2) 400 Robots Destroyed (10) 50 Value Destroyed (263) 263 Prototype IDs (0) 0 Alien Tech Used (0) 0 Bonus (0) 0 TOTAL SCORE: 1213 Bonus ------- None Cogmind --------- Core Integrity 0/400 Matter 308/450 Energy 100/100 System Corruption 0% Temperature Cool (0) Movement Core (750) Ox14 Location -9/Materials Parts ------- > --- POWER (1) -------- (None) > --- PROPULSION (2) --- (None) > --- UTILITY (3) ------ High-capacity Storage Unit Large Matter Pod > --- WEAPON (3) ------- (None) > --- INVENTORY (20) --- (None) Peak State ------------ > --- POWER ------------ Light Ion Engine > --- PROPULSION ------- Compact Wheel Compact Wheel > --- UTILITY ---------- Large Matter Pod Weapon Shielding > --- WEAPON ----------- Mining Laser Mining Laser > --- INVENTORY -------- Small Laser Light Assault Rifle [Rating: 7] Favorites ----------- Power Ion Engine Engine Ion Engine Propulsion Compact Wheel Leg Aluminum Leg Wheel Compact Wheel Flight Unit Flight Unit Utility Large Matter Pod Storage Large Matter Pod Protection Weapon Shielding Weapon Small Laser Energy Gun Small Laser Ballistic Gun Light Assault Rifle Special Weapon Mining Laser Build | -11 -10 -9 ------- Run | Yrd Mat Mat Slots Evolved 2 | . . 2 Power . | . . . Propulsion . | . . . Utility 1 | . . 1 Weapon 1 | . . 1 Parts Attached 20 | 6 12 2 Power 3 | 1 2 . Engine 3 | 1 2 . Core . | . . . Reactor . | . . . Propulsion 6 | 2 4 . Treads . | . . . Leg 1 | . 1 . Wheel 4 | 2 2 . Hover . | . . . Flight 1 | . 1 . Utility 3 | . 2 1 Device . | . . . Storage 2 | . 1 1 Processor . | . . . Hackware . | . . . Protection 1 | . 1 . Artifact . | . . . Weapon 8 | 3 4 1 Energy Gun 4 | 1 2 1 Energy Cannon . | . . . Ballistic Gun 2 | 2 . . Ballistic Cannon . | . . . Launcher . | . . . Special Weapon 2 | . 2 . Impact Weapon . | . . . Slashing Weapon . | . . . Piercing Weapon . | . . . Special Melee Weapon . | . . . Unidentified Prototypes . | . . . Parts Lost 12 | . 9 3 Power 3 | . 2 1 Propulsion 3 | . 2 1 Utility 1 | . 1 . Weapon 5 | . 4 1 Highest Loss Streak 4 | . 4 3 To Critical Strikes . | . . . Average Backups . | . . . Power . | . . . Propulsion . | . . . Utility . | . . . Weapon . | . . . Tool/Special . | . . . Unused Backups 1 | . 1 . Power 1 | . 1 . Propulsion . | . . . Utility . | . . . Weapon . | . . . Tool/Special . | . . . Average Slot Usage (%) 70 | . 76 42 Engine 9 | . 10 6 Leg 3 | . 2 7 Wheel 10 | . 12 . Flight 1 | . 2 . Storage 12 | . 10 22 Protection 7 | . 9 . Energy Gun 16 | . 18 6 Ballistic Gun 3 | . 4 . Special Weapon 3 | . 4 . Peak Build Rating 7 | 5 7 5 Average Rating 4 | 3 5 3 On Entrance 2 | . 5 3 Naked Turns . | . . . Heaviest Build 50 | 5 11 50 Greatest Support 32 | 20 32 10 Greatest Overweight (x) 14 | . 3 14 Average Overweight (x) . | . . 7 Largest Inventory Capacity 20 | 5 5 20 Average Capacity 7 | 5 5 20 Most Carried 4 | 2 4 1 Average Carried . | . . . Final Capacity 20 | 5 5 20 Final Carried 2 | . 2 . Class Distribution -------------------- 75% | Mutant 24% | Scavenger-Mutant Dominant Class ---------------- Mutant | -10/Materials Mutant | -9/Materials Resources | -11 -10 -9 ----------- Run | Yrd Mat Mat Matter Collected 381 | 268 113 . Remotely . | . . . Salvage Created 292 | 36 256 . Parts 19 | 4 15 . Haulers Intercepted . | . . . Recyclers Shooed . | . . . Parts Field Recycled . | . . . Retrieved Matter . | . . . Parts Self-Destructed . | . . . Prevented . | . . . Kills | -11 -10 -9 ------- Run | Yrd Mat Mat Combat Hostiles Destroyed 9 | 1 8 . Guns 9 | 1 8 . Classes Destroyed 3 | 1 2 . Watcher 1 | . 1 . Swarmer 3 | . 3 . Grunt 6 | 1 5 . Best Kill Streak 3 | 1 3 . Combat Bots Only 3 | 1 3 . Max Kills in Single Turn 1 | 1 1 . Gunslinging . | . . . Exploded . | . . . Melee . | . . . Uniques/NPCs Destroyed . | . . . Combat | -11 -10 -9 -------- Run | Yrd Mat Mat Hostile Shots Fired 151 | 6 105 40 Missed 38 | 4 27 7 Hits 113 | 2 78 33 Melee 12 | . . 12 Projectile 101 | 2 78 21 Damage Taken 1413 | 22 764 627 Core 624 | . 197 427 Absorbed by Shields . | . . . Redirected to Shielding 50 | . 50 . Core Remaining (%) 60 | 100 21 . Volleys Fired 54 | 4 43 7 Largest 2 | 2 2 1 Hottest 200 | 40 200 40 Shots Fired 96 | 8 81 7 Gun 88 | 8 73 7 Cannon . | . . . Launcher . | . . . Special 8 | . 8 . Kinetic 20 | 8 12 . Thermal 69 | . 69 . Explosive . | . . . Electromagnetic 7 | . . 7 Robot Hit Streak 5 | 4 5 3 Robot Miss Streak 9 | 2 9 2 Penetration Max . | . . . Secondary Targets 2 | . 2 . Max Gunslinging Chain 1 | . 1 . Shots Hit Robots 48 | 5 39 4 Core Hits 23 | 2 20 1 Critical Kills . | . . . Critical Parts Destroyed . | . . . Critical Strikes . | . . . Melee Attacks . | . . . Impact . | . . . Slashing . | . . . Piercing . | . . . Sneak Attacks . | . . . Combat Hostiles . | . . . Follow-up Attacks . | . . . Damage Inflicted 535 | 43 438 54 Guns 499 | 43 410 46 Cannons . | . . . Explosions . | . . . Melee . | . . . Ramming 12 | . 4 8 Kinetic 110 | 43 67 . Thermal 367 | . 367 . Explosive . | . . . Electromagnetic 46 | . . 46 Impact . | . . . Slashing . | . . . Piercing . | . . . Highest Corruption . | . . . Average Corruption . | . . . Corruption Purged . | . . . Corruption Blocked . | . . . Overload Shots . | . . . Overflow Damage 4 | . 4 . Projectiles 4 | . 4 . Explosions . | . . . Melee . | . . . Knockbacks . | . . . Impact . | . . . Kinetic . | . . . Secondary . | . . . Self-Inflicted Damage 2 | . 2 . Shots . | . . . Rammed 2 | . 2 . Targets Rammed 3 | . 2 1 Kicked 1 | . . 1 Crushed . | . . . Highest Temperature 270 | 6 270 3 Average Temperature 69 | 6 71 2 Received Heat Transfer 372 | 12 234 126 Siege Activations . | . . . Martial Activations . | . . . Shielding Activations . | . . . Robots Disrupted . | . . . Combat Hostiles . | . . . Robots Corrupted . | . . . Combat Hostiles . | . . . Parts Fried . | . . . Impact Corruptions . | . . . Robots Melted . | . . . Combat Hostiles . | . . . Parts Melted 1 | . 1 . Heat Transferred 825 | . 825 . Parts Sabotaged . | . . . Parts Stolen . | . . . Parts Stripped . | . . . Power Chain Reactions . | . . . Alert | -11 -10 -9 ------- Run | Yrd Mat Mat Maximum Alert Level . | . . . Low Security (%) 100 | 100 100 100 Level 1 . | . . . Level 2 . | . . . Level 3 . | . . . Level 4 . | . . . Level 5 . | . . . High Security . | . . . Max Security . | . . . Peak Influence 60 | 20 60 2 Initial 6 | . 6 2 Average 17 | 2 23 . Influence Increases 255 | 20 235 . Destroy 0b10 Robot/C 180 | 20 160 . Destroy 0b10 Robot/NC 5 | . 5 . Destroy Leader 52 | . 52 . Destroy Structure 3 | . 3 . Lose Combat Pursuer 15 | . 15 . Influence Decreases 255 | 10 238 7 Entered New Map 9 | . 4 5 Time Decay 189 | 10 177 2 Lost Part 57 | . 57 . Squads Dispatched 3 | . 3 . Investigation 1 | . 1 . Extermination . | . . . Reinforcement 2 | . 2 . Assault . | . . . Garrison . | . . . Intercept . | . . . Searches Triggered . | . . . Construction Impeded . | . . . Haulers Reinforced . | . . . Active Scanning Responses . | . . . Cargo Convoy Interrupts . | . . . Stealth | -11 -10 -9 --------- Run | Yrd Mat Mat Distress Signals 2 | . 2 . Communications Jammed . | . . . Distress Signals . | . . . Times Spotted 21 | 1 17 3 Peak Tracking Total 5 | 1 5 3 Tactical Retreats 1 | . 1 . Traps | -11 -10 -9 ------- Run | Yrd Mat Mat Traps Triggered 2 | . 2 . Indirectly . | . . . Trap Hack Attempts . | . . . Triggered . | . . . Disarmed . | . . . Reprogrammed . | . . . Reused . | . . . Traps Extracted . | . . . Installed . | . . . Triggered . | . . . Machines | -11 -10 -9 ---------- Run | Yrd Mat Mat Machines Disabled . | . . . Max in Single Turn . | . . . Machines Repaired . | . . . Machines Dismantled . | . . . Machines Sabotaged . | . . . Overloaded Fab Kills . | . . . Hacking | -11 -10 -9 --------- Run | Yrd Mat Mat Machines Accessed 1 | . 1 . Terminals 1 | . 1 . Fabricators . | . . . Repair Stations . | . . . Recycling Units . | . . . Scanalyzers . | . . . Garrison Access . | . . . Total Hacks 1 | . 1 . Successful 1 | . 1 . Failed . | . . . Catastrophic . | . . . Database Lockouts . | . . . Manual . | . . . Terminals 1 | . 1 . Fabricators . | . . . Repair Stations . | . . . Recycling Units . | . . . Scanalyzers . | . . . Garrison Access . | . . . Terminal Hacks 1 | . 1 . Hauler Manifests 1 | . 1 . Fabricator Hacks . | . . . Repair Station Hacks . | . . . Recycling Unit Hacks . | . . . Scanalyzer . | . . . Garrison Access Hacks . | . . . Unauthorized Hacks . | . . . Terminals . | . . . Fabricators . | . . . Repair Stations . | . . . Recycling Units . | . . . Scanalyzers . | . . . Garrison Access . | . . . Data Cores Recovered . | . . . Used . | . . . Hacking Detections 1 | . 1 . Full Trace Events . | . . . Feedback Events . | . . . Feedback Blocked . | . . . Robot Schematics Acquired . | . . . Robots Built . | . . . Authchips . | . . . Time . | . . . Total Robot Build Rating . | . . . Part Schematics Acquired . | . . . Parts Built . | . . . Authchips . | . . . Time . | . . . Total Part Build Rating . | . . . Parts Repaired . | . . . Time . | . . . Parts Recycled . | . . . Recycled Matter . | . . . Retrieved Matter . | . . . Retrieved Components . | . . . Parts Scanalyzed . | . . . Part Schematics Acquired . | . . . Parts Damaged . | . . . Bothacking | -11 -10 -9 ------------ Run | Yrd Mat Mat Used RIF Installer . | . . . Robots Hacked . | . . . Non-combat . | . . . Combat . | . . . Robot Hacks Applied . | . . . Relay Couplers Released . | . . . Fabnet Peak Effective % . | . . . Robots Rewired . | . . . Allies Hacked . | . . . Hacks Repelled . | . . . Allies | -11 -10 -9 -------- Run | Yrd Mat Mat Total Allies . | . . . Largest Group . | . . . Highest-Rated Group . | . . . Highest-Rated Ally . | . . . Total Orders . | . . . Ally Attacks . | . . . Total Damage . | . . . Kills . | . . . Allies Corrupted . | . . . Allies Melted . | . . . Intel | -11 -10 -9 ------- Run | Yrd Mat Mat Active Infowar (turns) . | . . . Robot Analysis Total . | . . . Derelict Logs Recovered . | . . . Drone Launches . | . . . Drone Recoveries . | . . . Exploration | -11 -10 -9 ------------- Run | Yrd Mat Mat Turns Passed 666 | 84 490 92 Spaces Moved 380 | 86 279 15 Core 56 | 27 24 5 Treads . | . . . Legs 68 | . 58 10 Wheels 232 | 59 173 . Hover . | . . . Flight 24 | . 24 . Fastest Speed 50 | 50 80 400 Average Speed 118 | 70 112 516 Slowest Speed 750 | 80 205 750 Overloaded Moves . | . . . Propulsion Burnouts . | . . . Robots Hopped . | . . . Potential Cave-ins . | . . . Cave-ins Triggered . | . . . Exploration Rate (%) 18 | 8 43 4 Regions Visited 2 Branch Regions . Pre-discovered Areas . | . . . Known Exits Taken . | . . . Unknown Exits Taken 2 | 1 1 . Scrap Searched . | . . . Spaces Dug 3 | . 3 . Terrain Destroyed 4 | . 4 . Melee . | . . . Projectile 4 | . 4 . AOE . | . . . Terrain Rammed . | . . . Walls Destroyed . | . . . Machines Disabled . | . . . Actions | -11 -10 -9 --------- Run | Yrd Mat Mat Total 485 | 102 358 25 Wait . | . . . Move 378 | 85 278 15 Hop . | . . . Pick Up 21 | 6 15 . Fast Attach . | . . . Attach 15 | 5 8 2 Detach . | . . . Swap 7 | 1 6 . Drop 7 | 1 6 . Fire 54 | 4 43 7 Melee . | . . . Ram 2 | . 2 . Kick 1 | . . 1 Crush . | . . . Escape Stasis . | . . . Rewire . | . . . Trap . | . . . Miscellaneous . | . . . Route ------- -11/Scrapyard -10/Materials -9/Materials History --------- Turn | Location | Event 2 | -11/Scrapyard | Met Revision 17 55 | -11/Scrapyard | Discovered new exit (range 8) 85 | -11/Scrapyard | Entered Materials 269 | -10/Materials | Lost 4 parts (1p1n2w) 317 | -10/Materials | Build established: Mutant 397 | -10/Materials | Core integrity fell below 50% 523 | -10/Materials | Discovered new exit (range 16) 575 | -10/Materials | Entered another Materials area 575 | -9/Materials | Evolved 2 slots: Utility x1, Weapon x1 656 | -9/Materials | Core integrity fell below 50% 663 | -9/Materials | Core integrity fell below 20% 665 | -9/Materials | Lost 3 parts (1p1n1w) 667 | -9/Materials | Destroyed by L-31 Rogue with Katana Last Messages --------------- 00533_ Triggered Explosive Trap. 00533_ An explosion rips through the floor. 00545_ Acquired EM Pulse Gun. 00560_ Triggered Alarm Trap. 00560_ An alarm sounds. 00560_ ALERT: Alarm triggered, dispatching investigation squad. 00564_ G-34 Mercenary destroyed. 00566_ Sml. Laser destroyed. PARAMETERS=UTILITY+1,WEAPON+1 LOCATION=UNKNOWN GOAL=ESCAPE The Hcp. Storage Unit has expanded your inventory capacity. Items held in inventory do not count towards total mass and therefore cannot slow you down. 00582_ K-01 Serf collects debris. 00605_ Kicked K-01 Serf. 00627_ Ion Engine destroyed. 00631_ EM Pulse Gun destroyed. 00632_ T-07 Excavator is excavating. 00634_ Aluminum Leg destroyed. Map ----- +----------------------------------------------------+ | | | | | | | | | | | | | | | | | | | | | | | | | | | | | | | | | | | | | | | ?????????????????????????????????????????????? | | ????????????????###########??????????????????? | | ????????????????# #??????????????????? | | ????????????????# """" #??????????????????? | | ????????????????# ""S"" #??????????????????? | | ????????????????# "" "" #??????????????????? | | ????????????????# @ #??????????????????? | | ????????????????# l #??????????????????? | | ????????????????# #??????????????????? | | ????????????????# g g #??????????????????? | | ??????????###########+##########?????????????? | | ??????????# ????????? | | ??????????# ????????? | | ??????????# ????????? | | ??????????############ ########## ?????????? | | ?????????????????????? #???????????????????? | | ?????????????????????? #???????????????????? | | ?????????????????????? #???????????????????? | | ?????????????????????? #???????????????????? | | ?????????????????????? #???????????????????? | | ?????????????????????? #???????????????????? | | ?????????????????????? #???????????????????? | | ??????????????????????? #???????????????????? | | ??????????????????????? #???????????????????? | | ??????????????????????? #???????????????????? | | ??????????????????????? #???????????????????? | | ?????????????????????????????????????????????? | | ?????????????????????????????????????????????? | | ?????????????????????????????????????????????? | | ?????????????????????????????????????????????? | | ?????????????????????????????????????????????? | +----------------------------------------------------+ Best States ------------- Heat Dissipation 28 Energy Generation 10 Energy Capacity 250 Matter Stores 311 Matter Capacity 450 Sight Range 16 Terrain Scan Density 10 Weapon Shielding 33 Evasion (%) 55 Item Schematics ----------------- None Robot Schematics ------------------ None Fabricated ------------ Nothing Repaired ---------- Nothing Alien Tech Used ----------------- None Achievements -------------- Shopping List Challenges ------------ None Game ------ Seed SapperFireStrikerail Manual? 0 Play Time 00:08:35 Cumulative 1.4 hours Start 2025.08.17 @ 18:16:43 End 2025.08.17 @ 18:24:34 Sessions 1 Manual Loads 0 Difficulty Rogue Special Mode None Game No. 3 Rogue 3 Adventurer 0 Explorer 0 Win Type - Total 0 Types 0/0/0/0/0/0/0/0/0/0 Lore% 2 Gallery% 2 Achievement% 5 Wizard Run 0 Options --------- Layout 0 ASCII 0 Keyboard 0 Movement Arrows Keybinds 0 Fullscreen 2 Font 24/Terminus Map View 76x50 Zoom Use 0% Tactical HUD 1 Map Filters NONE Filters NONE Steam 1 RUN: be55453d-b358-4971-b938-84b4c80b6abb